fUSD/lending_fUSD_20250629
["ID","MTS","AMOUNT","RATE_DAILY","PERIOD"]
[368541925,1751201463842,-490.0,0.00025205,3]
[368541927,1751201463852,-490.0,0.00025205,3]
[368541930,1751201463861,-843.92,0.00025205,3]
[368541931,1751201463871,-490.0,0.00025205,3]
[368541934,1751201463881,-490.0,0.00025205,3]
[368541935,1751201463891,-1068.22,0.00025205,3]
[368541937,1751201463901,-490.0,0.00025205,3]
[368541939,1751201463911,-490.0,0.00025205,3]
[368541941,1751201463921,-490.0,0.00025205,3]
[368541944,1751201463931,-490.0,0.00025205,3]
[368541945,1751201463940,-1496.85,0.00025205,3]
[368541947,1751201463950,-490.0,0.00025205,3]
[368541949,1751201463959,-834.73,0.00025205,3]
[368541952,1751201463969,-173.41815888,0.00025205,3]
[368541953,1751201463979,-490.0,0.00025205,3]
[368541955,1751201463988,-692.48,0.00025205,3]
[368541958,1751201463998,-231.85752559,0.00025205,3]
[368541959,1751201464007,-490.0,0.00025205,3]
[368541961,1751201464016,-490.0,0.00025205,3]
[368541963,1751201464025,-490.0,0.00025205,3]
[368541965,1751201464035,-490.0,0.00025205,3]
[368541967,1751201464044,-607.29,0.00025205,3]
[368541969,1751201464053,-490.0,0.00025205,3]
[368541971,1751201464063,-490.0,0.00025205,3]
[368541973,1751201464072,-576.76,0.00025205,3]
[368541975,1751201464081,-614.07,0.00025205,3]
[368541977,1751201464091,-808.27,0.00025205,3]
[368541979,1751201464100,-490.0,0.00025205,3]
[368541981,1751201464110,-490.0,0.00025205,3]
[368541983,1751201464119,-490.0,0.00025205,3]
[368541985,1751201464129,-490.0,0.00025205,3]
[368541988,1751201464138,-490.0,0.00025205,3]
[368541990,1751201464148,-490.0,0.00025205,3]
[368541992,1751201464157,-490.0,0.00025205,3]
[368541994,1751201464167,-490.0,0.00025205,3]
[368541996,1751201464176,-501.91,0.00025205,3]
[368541998,1751201464185,-766.61,0.00025205,3]
[368542000,1751201464195,-490.0,0.00025205,3]
[368542001,1751201464204,-490.0,0.00025205,3]
[368542003,1751201464213,-490.0,0.00025205,3]
[368542005,1751201464222,-547.81,0.00025205,3]
[368542007,1751201464231,-490.0,0.00025205,3]
[368542009,1751201464240,-490.0,0.00025205,3]
[368542011,1751201464250,-490.0,0.00025205,3]
[368542014,1751201464259,-802.03,0.00025205,3]
[368542016,1751201464269,-490.0,0.00025205,3]
[368542017,1751201464278,-490.0,0.00025205,3]
[368542019,1751201464287,-490.0,0.00025205,3]
[368542022,1751201464297,-490.0,0.00025205,3]
[368542024,1751201464307,-514.87,0.00025205,3]
[368542026,1751201464316,-586.94,0.00025205,3]
[368542028,1751201464325,-781.2,0.00025205,3]
[368542029,1751201464336,-490.0,0.00025205,3]
[368542032,1751201464346,-490.0,0.00025205,3]
[368542034,1751201464355,-490.0,0.00025205,3]
[368542036,1751201464364,-490.0,0.00025205,3]
[368542037,1751201464373,-758.65,0.00025205,3]
[368542039,1751201464382,-521.04,0.00025205,3]
[368542041,1751201464392,-867.13,0.00025205,3]
[368542044,1751201464401,-490.0,0.00025205,3]
[368542046,1751201464411,-530.0,0.00025205,3]
[368542048,1751201464420,-1510.54,0.00025205,3]
[368542049,1751201464429,-490.0,0.00025205,3]
[368542051,1751201464438,-493.06294965,0.00025205,3]
[368542054,1751201464447,-490.0,0.00025205,3]
[368542056,1751201464457,-490.0,0.00025205,3]
[368542058,1751201464467,-490.0,0.00025205,3]
[368542060,1751201464476,-490.0,0.00025205,3]
[368542062,1751201464485,-2192.07,0.00025205,3]
[368542063,1751201464494,-674.51,0.00025205,3]
[368542065,1751201464504,-490.0,0.00025205,3]
[368542066,1751201464513,-490.0,0.00025205,3]
[368542067,1751201464522,-490.0,0.00025205,3]
[368542068,1751201464531,-1500.0,0.00025205,3]
[368542069,1751201464541,-490.0,0.00025205,3]
[368542070,1751201464550,-2157.41,0.00025205,3]
[368542071,1751201464559,-498.23681765,0.00025205,3]
[368542072,1751201464569,-490.0,0.00025205,3]
[368542073,1751201464578,-989.77,0.00025205,3]
[368542074,1751201464587,-665.8,0.00025205,3]
[368542075,1751201464596,-490.0,0.00025205,3]
[368542077,1751201464605,-490.0,0.00025205,3]
[368542079,1751201464615,-1088.22,0.00025205,3]
[368542081,1751201464624,-463.76918504,0.00025205,3]
[368542083,1751201464633,-553.8,0.00025205,3]
[368542085,1751201464642,-696.88,0.00025205,3]
[368542087,1751201464651,-490.0,0.00025205,3]
[368542089,1751201464660,-488.89274564,0.00025205,3]
[368542091,1751201464672,-1268.61,0.00025205,3]
[368542093,1751201464681,-490.0,0.00025205,3]
[368542095,1751201464690,-1889.65,0.00025205,3]
[368542097,1751201464699,-490.0,0.00025205,3]
[368542099,1751201464708,-490.0,0.00025205,3]
[368542101,1751201464718,-544.95,0.00025205,3]
[368542103,1751201464727,-490.0,0.00025205,3]
[368542105,1751201464738,-497.62,0.00025205,3]
[368542106,1751201464747,-490.0,0.00025205,3]
[368542108,1751201464756,-546.04,0.00025205,3]
[368542110,1751201464765,-490.0,0.00025205,3]
[368542112,1751201464775,-490.0,0.00025205,3]
[368542114,1751201464784,-490.0,0.00025205,3]
[368542116,1751201464793,-490.0,0.00025205,3]
[368542118,1751201464802,-496.95949357,0.00025205,3]
[368542120,1751201464811,-401.61529758,0.00025205,3]
[368542145,1751201465032,-695.99,0.00025205,3]
[368542147,1751201465043,-490.0,0.00025205,3]
[368542149,1751201465052,-490.0,0.00025205,3]
[368542151,1751201465062,-490.0,0.00025205,3]
[368542153,1751201465071,-490.0,0.00025205,3]
[368542155,1751201465080,-490.0,0.00025205,3]
[368542157,1751201465089,-490.0,0.00025205,3]
[368542159,1751201465098,-1185.22,0.00025205,3]
[368542161,1751201465108,-490.0,0.00025205,3]
[368542163,1751201465117,-764.3,0.00025205,3]
[368542165,1751201465126,-929.8,0.00025205,3]
[368542167,1751201465135,-2010.01,0.00025205,3]
[368542169,1751201465144,-243.28871134,0.00025205,3]
[368542171,1751201465155,-490.0,0.00025205,3]
[368542173,1751201465165,-1502.79,0.00025205,3]
[368542175,1751201465175,-490.0,0.00025205,3]
[368542177,1751201465183,-490.0,0.00025205,3]
[368542179,1751201465192,-1289.53,0.00025205,3]
[368542181,1751201465201,-490.0,0.00025205,3]
[368542183,1751201465211,-2285.18,0.00025205,3]
[368542185,1751201465220,-1961.28,0.00025205,3]
[368542187,1751201465230,-490.0,0.00025205,3]
[368542189,1751201465239,-490.0,0.00025205,3]
[368542191,1751201465248,-646.56,0.00025205,3]
[368542193,1751201465257,-1200.36,0.00025205,3]
[368542195,1751201465266,-490.0,0.00025205,3]
[368542197,1751201465275,-490.0,0.00025205,3]
[368542199,1751201465284,-490.0,0.00025205,3]
[368542201,1751201465293,-495.78605399,0.00025205,3]
[368542203,1751201465302,-490.0,0.00025205,3]
[368542205,1751201465312,-455.02,0.00025205,3]
[368542207,1751201465321,-361.5349142,0.00025205,3]
[368542209,1751201465330,-490.0,0.00025205,3]
[368542211,1751201465340,-1455.69,0.00025205,3]
[368542213,1751201465349,-870.46,0.00025205,3]
[368542215,1751201465359,-1065.18,0.00025205,3]
[368542217,1751201465368,-490.0,0.00025205,3]
[368542219,1751201465377,-490.0,0.00025205,3]
[368542221,1751201465387,-490.0,0.00025205,3]
[368542223,1751201465396,-1413.88,0.00025205,3]
[368542225,1751201465405,-151.669424,0.00025205,7]
[368542227,1751201465415,-2023.07,0.00025205,3]
[368542229,1751201465425,-490.0,0.00025205,3]
[368542231,1751201465434,-490.0,0.00025205,3]
[368542233,1751201465443,-490.0,0.00025205,3]
[368542235,1751201465452,-311.69277847,0.00025205,3]
[368542237,1751201465461,-2726.71,0.00025205,3]
[368542239,1751201465470,-490.0,0.00025205,3]
[368542241,1751201465479,-259.92055322,0.00025205,3]
[368542243,1751201465489,-490.0,0.00025205,3]
[368542245,1751201465498,-151.382302,0.00025205,2]
[368542247,1751201465508,-490.0,0.00025205,3]
[368542249,1751201465517,-304.69,0.00025205,3]
[368542251,1751201465527,-505.44,0.00025205,3]
[368542252,1751201465537,-490.0,0.00025205,3]
[368542255,1751201465548,-1620.53,0.00025205,3]
[368542257,1751201465557,-490.0,0.00025205,3]
[368542259,1751201465567,-538.9,0.00025205,3]
[368542260,1751201465577,-1103.31,0.00025205,3]
[368542262,1751201465587,-151.0,0.00025205,7]
[368542264,1751201465596,-507.36,0.00025205,3]
[368542266,1751201465605,-151.0,0.00025205,7]
[368542268,1751201465614,-490.0,0.00025205,3]
[368542270,1751201465623,-151.0,0.00025205,7]
[368542272,1751201465632,-1203.06,0.00025205,3]
[368542274,1751201465641,-1804.9,0.00025205,3]
[368542276,1751201465651,-546.19,0.00025205,3]
[368542278,1751201465661,-151.0,0.00025205,7]
[368542281,1751201465673,-1096.45,0.00025205,3]
[368542283,1751201465682,-780.08,0.00025205,3]
[368542285,1751201465692,-2488.18,0.00025205,3]
[368542287,1751201465702,-490.0,0.00025205,3]
[368542288,1751201465711,-496.28081116,0.00025205,3]
[368542291,1751201465720,-1670.65,0.00025205,3]
[368542293,1751201465730,-492.30902275,0.00025205,3]
[368542295,1751201465739,-490.0,0.00025205,3]
[368542296,1751201465749,-1256.95,0.00025205,3]
[368542298,1751201465759,-641.05,0.00025205,3]
[368542301,1751201465768,-490.0,0.00025205,3]
[368542303,1751201465778,-2719.81,0.00025205,3]
[368542305,1751201465788,-490.0,0.00025205,3]
[368542307,1751201465798,-689.05,0.00025205,3]
[368542309,1751201465807,-490.0,0.00025205,3]
[368542311,1751201465816,-1028.28,0.00025205,3]
[368542313,1751201465825,-825.37,0.00025205,3]
[368542315,1751201465834,-1284.03,0.00025205,3]
[368542317,1751201465843,-490.0,0.00025205,3]
[368542319,1751201465852,-1225.82,0.00025205,3]
[368542321,1751201465862,-490.0,0.00025205,3]
[368542323,1751201465872,-905.64,0.00025205,3]
[368542325,1751201465881,-1248.82,0.00025205,3]
[368542327,1751201465890,-490.0,0.00025205,3]
[368542329,1751201465899,-152.511225,0.00025205,7]
[368542331,1751201465908,-1087.42,0.00025205,3]
[368542333,1751201465917,-507.2193803,0.00025205,3]
[368542335,1751201465926,-490.0,0.00025205,3]
[368542337,1751201465934,-490.0,0.00025205,3]
[368542339,1751201465944,-151.0,0.00025205,7]
[368542341,1751201465952,-490.0,0.00025205,3]
[368542343,1751201465962,-824.41,0.00025205,3]
[368542345,1751201465971,-490.0,0.00025205,3]
[368542347,1751201465980,-211.504467,0.00025205,7]
[368542349,1751201465989,-490.0,0.00025205,3]
[368542351,1751201465998,-2557.18,0.00025205,3]
[368542353,1751201466008,-490.0,0.00025205,3]
[368542355,1751201466017,-666.97,0.00025205,3]
[368542357,1751201466028,-269.74280574,0.00025205,3]
[368542359,1751201466038,-490.0,0.00025205,3]
[368542361,1751201466048,-3498.81,0.00025205,3]
[368542363,1751201466057,-490.0,0.00025205,3]
[368542365,1751201466067,-490.0,0.00025205,3]
[368542367,1751201466076,-801.71,0.00025205,3]
[368542369,1751201466085,-490.0,0.00025205,3]
[368542371,1751201466095,-490.0,0.00025205,3]
[368542373,1751201466105,-490.0,0.00025205,3]
[368542375,1751201466116,-326.50770705,0.00025205,3]
[368542377,1751201466125,-1233.6,0.00025205,3]
[368542379,1751201466134,-2658.2,0.00025205,3]
[368542381,1751201466144,-490.0,0.00025205,3]
[368542383,1751201466155,-499.55926827,0.00025205,3]
[368542385,1751201466164,-2851.47,0.00025205,3]
[368542387,1751201466174,-1657.06,0.00025205,3]
[368542388,1751201466183,-490.0,0.00025205,3]
[368542389,1751201466192,-1669.78,0.00025205,3]
[368542390,1751201466201,-490.0,0.00025205,3]
[368542391,1751201466210,-1450.21,0.00025205,3]
[368542392,1751201466219,-490.0,0.00025205,3]
[368542393,1751201466228,-490.0,0.00025205,3]
[368542394,1751201466238,-572.85,0.00025205,3]
[368542395,1751201466247,-490.0,0.00025205,3]
[368542396,1751201466255,-504.25627818,0.00025205,3]
[368542397,1751201466264,-1255.3,0.00025205,3]
[368542398,1751201466274,-490.0,0.00025205,3]
[368542400,1751201466284,-1368.4,0.00025205,3]
[368542402,1751201466293,-490.0,0.00025205,3]
[368542405,1751201466303,-490.0,0.00025205,3]
[368542407,1751201466313,-1155.02,0.00025205,3]
[368542408,1751201466322,-490.0,0.00025205,3]
[368542411,1751201466332,-490.0,0.00025205,3]
[368542412,1751201466341,-875.25,0.00025205,3]
[368542414,1751201466350,-1109.3,0.00025205,3]
[368542417,1751201466360,-490.0,0.00025205,3]
[368542419,1751201466369,-362.66027848,0.00025205,3]
[368542420,1751201466378,-2537.19,0.00025205,3]
[368542422,1751201466387,-898.83,0.00025205,3]
[368542424,1751201466396,-490.0,0.00025205,3]
[368542426,1751201466405,-490.0,0.00025205,3]
[368542428,1751201466413,-490.0,0.00025205,3]
[368542430,1751201466423,-490.0,0.00025205,3]
[368542432,1751201466432,-490.0,0.00025205,3]
[368542434,1751201466441,-508.22,0.00025205,3]
[368542436,1751201466450,-707.84,0.00025205,3]
[368542438,1751201466460,-1827.12,0.00025205,3]
[368542440,1751201466469,-490.0,0.00025205,3]
[368542442,1751201466478,-557.77,0.00025205,3]
[368542444,1751201466487,-3187.71,0.00025205,3]
[368542446,1751201466496,-490.0,0.00025205,3]
[368542448,1751201466506,-555.83,0.00025205,3]
[368542450,1751201466515,-490.0,0.00025205,3]
[368542452,1751201466524,-490.0,0.00025205,3]
[368542454,1751201466534,-490.0,0.00025205,3]
[368542456,1751201466543,-490.0,0.00025205,3]
[368542458,1751201466552,-1055.88,0.00025205,3]
[368542460,1751201466561,-490.0,0.00025205,3]
[368542462,1751201466570,-490.0,0.00025205,3]
[368542464,1751201466580,-707.6,0.00025205,3]
[368542466,1751201466589,-490.0,0.00025205,3]
[368542468,1751201466599,-490.0,0.00025205,3]
[368542470,1751201466608,-567.82,0.00025205,3]
[368542472,1751201466616,-1188.85,0.00025205,3]
[368542474,1751201466626,-586.01,0.00025205,3]
[368542476,1751201466635,-942.28,0.00025205,3]
[368542478,1751201466644,-1074.57,0.00025205,3]
[368542480,1751201466652,-490.0,0.00025205,3]
[368542482,1751201466662,-490.0,0.00025205,3]
[368542484,1751201466674,-246.51,0.00025205,3]
[368542486,1751201466683,-490.0,0.00025205,3]
[368542488,1751201466691,-490.0,0.00025205,3]
[368542490,1751201466701,-423.49316865,0.00025205,3]
[368542492,1751201466711,-490.0,0.00025205,3]
[368542494,1751201466719,-699.95,0.00025205,3]
[368542496,1751201466729,-490.0,0.00025205,3]
[368542498,1751201466737,-490.0,0.00025205,3]
[368542500,1751201466748,-490.0,0.00025205,3]
[368542502,1751201466757,-648.62,0.00025205,3]
[368542504,1751201466766,-490.0,0.00025205,3]
[368542506,1751201466775,-490.0,0.00025205,3]
[368542508,1751201466784,-490.0,0.00025205,3]
[368542510,1751201466795,-551.15,0.00025205,3]
[368542512,1751201466804,-1135.58,0.00025205,3]
[368542514,1751201466813,-490.0,0.00025205,3]
[368542516,1751201466822,-490.0,0.00025205,3]
[368542518,1751201466831,-493.62,0.00025205,3]
[368542520,1751201466840,-490.0,0.00025205,3]
[368542522,1751201466849,-1082.84,0.00025205,3]
[368542524,1751201466858,-490.0,0.00025205,3]
[368542525,1751201466867,-979.7,0.00025205,3]
[368542528,1751201466876,-490.0,0.00025205,3]
[368542529,1751201466885,-659.82,0.00025205,3]
[368542531,1751201466894,-1444.93,0.00025205,3]
[368542533,1751201466903,-490.0,0.00025205,3]
[368542536,1751201466912,-490.0,0.00025205,3]
[368542537,1751201466921,-151.0,0.00025205,7]
[368542539,1751201466930,-558.82,0.00025205,3]
[368542541,1751201466939,-741.57,0.00025205,3]
[368542543,1751201466948,-876.83,0.00025205,3]
[368542545,1751201466957,-490.0,0.00025205,3]
[368542547,1751201466967,-500.89484932,0.00025205,3]
[368542549,1751201466975,-2731.94,0.00025205,3]
[368542551,1751201466985,-492.64861949,0.00025205,3]
[368542553,1751201466994,-490.0,0.00025205,3]
[368542555,1751201467003,-151.0,0.00025205,7]
[368542557,1751201467012,-1174.14,0.00025205,3]
[368542559,1751201467021,-964.95,0.00025205,3]
[368542561,1751201467031,-490.0,0.00025205,3]
[368542563,1751201467040,-2917.3,0.00025205,3]
[368542565,1751201467050,-2263.12,0.00025205,3]
[368542567,1751201467059,-490.0,0.00025205,3]
[368542569,1751201467068,-541.9,0.00025205,3]
[368542571,1751201467078,-879.95,0.00025205,3]
[368542573,1751201467088,-490.0,0.00025205,3]
[368542575,1751201467097,-490.0,0.00025205,3]
[368542577,1751201467106,-16816.13,0.00025205,3]
[368542579,1751201467116,-490.0,0.00025205,3]
[368542581,1751201467125,-2004.78,0.00025205,3]
[368542583,1751201467134,-490.0,0.00025205,3]
[368542585,1751201467143,-2646.23,0.00025205,3]
[368542587,1751201467152,-490.0,0.00025205,3]
[368542589,1751201467161,-585.6675125,0.00025205,3]
[368542591,1751201467170,-575.46,0.00025205,3]
[368542593,1751201467179,-490.0,0.00025205,3]
[368542595,1751201467189,-7557.19,0.00025205,3]
[368542597,1751201467198,-490.0,0.00025205,3]
[368542599,1751201467208,-1734.91,0.00025205,3]
[368542601,1751201467217,-490.0,0.00025205,3]
[368542603,1751201467227,-490.0,0.00025205,3]
[368542605,1751201467236,-490.0,0.00025205,3]
[368542608,1751201467246,-4952.51,0.00025205,3]
[368542610,1751201467255,-490.0,0.00025205,3]
[368542611,1751201467264,-490.0,0.00025205,3]
[368542613,1751201467273,-214.22236239,0.00025205,3]
[368542615,1751201467283,-956.43,0.00025205,3]
[368542618,1751201467292,-490.0,0.00025205,3]
[368542620,1751201467302,-490.0,0.00025205,3]
[368542622,1751201467311,-490.0,0.00025205,3]
[368542624,1751201467320,-1564.17,0.00025205,3]
[368542626,1751201467329,-530.88,0.00025205,3]
[368542627,1751201467339,-2978.47,0.00025205,3]
[368542629,1751201467348,-1176.28,0.00025205,3]
[368542631,1751201467357,-490.0,0.00025205,3]
[368542634,1751201467368,-490.0,0.00025205,3]
[368542636,1751201467377,-10252.96,0.00025205,3]
[368542638,1751201467386,-696.62,0.00025205,3]
[368542640,1751201467396,-3176.95,0.00025205,3]
[368542642,1751201467405,-1934.71,0.00025205,3]
[368542644,1751201467414,-676.15,0.00025205,3]
[368542646,1751201467424,-490.0,0.00025205,3]
[368542648,1751201467433,-490.0,0.00025205,3]
[368542650,1751201467443,-2642.29,0.00025205,3]
[368542652,1751201467453,-490.0,0.00025205,3]
[368542654,1751201467462,-490.0,0.00025205,3]
[368542656,1751201467471,-2556.87,0.00025205,3]
[368542658,1751201467481,-2033.46,0.00025205,3]
[368542660,1751201467490,-870.83,0.00025205,3]
[368542662,1751201467500,-490.0,0.00025205,3]
[368542664,1751201467509,-1601.64,0.00025205,3]
[368542665,1751201467518,-500.0,0.00025205,3]
[368542667,1751201467527,-490.0,0.00025205,3]
[368542669,1751201467536,-1873.07,0.00025205,3]
[368542671,1751201467546,-3800.78,0.00025205,3]
[368542673,1751201467556,-2598.58,0.00025205,3]
[368542675,1751201467567,-932.85,0.00025205,3]
[368542678,1751201467576,-490.0,0.00025205,3]
[368542679,1751201467585,-4076.58013,0.00025205,3]
[368542682,1751201467594,-490.0,0.00025205,3]
[368542683,1751201467604,-1991.03,0.00025205,3]
[368542685,1751201467613,-4453.79,0.00025205,3]
[368542687,1751201467622,-490.0,0.00025205,3]
[368542689,1751201467631,-5237.75,0.00025205,3]
[368542692,1751201467641,-720.91,0.00025205,3]
[368542694,1751201467651,-1489.26,0.00025205,3]
[368542696,1751201467660,-494.97,0.00025205,3]
[368542698,1751201467672,-490.0,0.00025205,3]
[368542699,1751201467681,-1541.52,0.00025205,3]
[368542702,1751201467690,-2590.77,0.00025205,3]
[368542704,1751201467700,-490.0,0.00025205,3]
[368542705,1751201467710,-2600.69,0.00025205,3]
[368542707,1751201467719,-491.18113545,0.00025205,3]
[368542708,1751201467729,-3685.23,0.00025205,3]
[368542709,1751201467739,-1661.01,0.00025205,3]
[368542710,1751201467749,-556.92,0.00025205,3]
[368542711,1751201467759,-490.0,0.00025205,3]
[368542712,1751201467768,-231.97135058,0.00025205,3]
[368542713,1751201467777,-490.0,0.00025205,3]
[368542714,1751201467786,-5789.69,0.00025205,3]
[368542715,1751201467795,-490.0,0.00025205,3]
[368542716,1751201467805,-4170.95,0.00025205,3]
[368542718,1751201467814,-490.0,0.00025205,3]
[368542720,1751201467823,-153.120771,0.00025205,7]
[368542722,1751201467835,-522.93,0.00025205,3]
[368542724,1751201467844,-851.73,0.00025205,3]
[368542726,1751201467854,-503.56,0.00025205,3]
[368542728,1751201467863,-1262.88,0.00025205,3]
[368542730,1751201467872,-490.0,0.00025205,3]
[368542732,1751201467881,-492.84104039,0.00025205,3]
[368542734,1751201467890,-290.52,0.00025205,3]
[368542736,1751201467899,-151.0,0.00025205,7]
[368542738,1751201467908,-3744.638091,0.00025205,3]
[368542740,1751201467917,-490.0,0.00025205,3]
[368542742,1751201467926,-5080.63,0.00025205,3]
[368542744,1751201467935,-939.82,0.00025205,3]
[368542746,1751201467945,-490.0,0.00025205,3]
[368542748,1751201467954,-873.06,0.00025205,3]
[368542750,1751201467963,-1783.0,0.00025205,3]
[368542752,1751201467972,-490.0,0.00025205,3]
[368542754,1751201467982,-490.0,0.00025205,3]
[368542756,1751201467991,-1511.02,0.00025205,3]
[368542758,1751201468000,-490.0,0.00025205,3]
[368542759,1751201468009,-490.0,0.00025205,3]
[368542783,1751201468214,-488.0,0.00025205,3]
[368542785,1751201468224,-9775.63,0.00025205,3]
[368542787,1751201468234,-490.0,0.00025205,3]
[368542789,1751201468244,-490.0,0.00025205,3]
[368542791,1751201468253,-746.41,0.00025205,3]
[368542793,1751201468263,-597.23,0.00025205,3]
[368542795,1751201468273,-1049.43,0.00025205,3]
[368542797,1751201468283,-3797.807646,0.00025205,3]
[368542799,1751201468292,-1823.96,0.00025205,3]
[368542801,1751201468302,-9241.38,0.00025205,3]
[368542803,1751201468311,-490.0,0.00025205,3]
[368542805,1751201468321,-490.0,0.00025205,3]
[368542807,1751201468330,-156.387305,0.00025205,3]
[368542809,1751201468339,-1359.5,0.00025205,3]
[368542811,1751201468348,-1683.59,0.00025205,3]
[368542813,1751201468358,-634.42,0.00025205,3]
[368542815,1751201468367,-490.0,0.00025205,3]
[368542817,1751201468376,-2402.91,0.00025205,3]
[368542819,1751201468386,-2068.73,0.00025205,3]
[368542820,1751201468394,-813.3,0.00025205,3]
[368542822,1751201468403,-153.018974,0.00025205,3]
[368542824,1751201468413,-3244.94,0.00025205,3]
[368542826,1751201468422,-586.353159,0.00025205,3]
[368542829,1751201468432,-3712.87,0.00025205,3]
[368542830,1751201468441,-166022.76,0.00025205,3]
[368542832,1751201468450,-634.16,0.00025205,3]
[368542834,1751201468459,-490.0,0.00025205,3]
[368542836,1751201468468,-4698.94,0.00025205,3]
[368542838,1751201468477,-490.0,0.00025205,3]
[368542839,1751201468486,-1204.81,0.00025205,3]
[368542841,1751201468495,-691.8,0.00025205,3]
[368542842,1751201468504,-1229.38,0.00025205,3]
[368542844,1751201468514,-2217.91,0.00025205,3]
[368542845,1751201468522,-2714.07,0.00025205,3]
[368542846,1751201468531,-2226.72,0.00025205,3]
[368542848,1751201468541,-558.0,0.00025205,3]
[368542849,1751201468550,-490.0,0.00025205,3]
[368542851,1751201468559,-1043.14322078,0.00025205,3]
[368542899,1751201469339,-1325.73677922,0.00025205,3]
[368542901,1751201469349,-4079.26322078,0.00025205,3]
[368542928,1751201469825,-490.0,0.00024657,2]
[368542930,1751201469834,-301.6050876,0.00024657,2]
[368542944,1751201469963,-188.3949124,0.00024657,2]
[368542946,1751201469972,-582.79,0.00024657,2]
[368542948,1751201469981,-490.0,0.00024657,2]
[368542950,1751201469990,-490.0,0.00024657,2]
[368542952,1751201469999,-189.18856228,0.00024931,3]
[368542954,1751201470010,-300.81143772,0.00024931,3]
[368542956,1751201470019,-115.27396011,0.00024931,3]
[368542959,1751201470030,-374.72603989,0.00024931,3]
[368542961,1751201470039,-377.48890607,0.00024931,3]
[368542963,1751201470051,-112.51109393,0.00024931,3]
[368542965,1751201470059,-490.0,0.00024931,3]
[368542967,1751201470068,-72.62378716,0.00024931,3]
[368542969,1751201470082,-417.37621284,0.00024931,3]
[368542971,1751201470091,-490.0,0.00024931,3]
[368542973,1751201470100,-146.03201929,0.00025205,3]
[368543152,1751201471898,-893.84963566,0.00019973,2]
[368543154,1751201471910,-21026.23610151,0.00019973,2]
[368543156,1751201471919,-940.42,0.00024657,2]
[368543158,1751201471928,-3770.88867549,0.00024657,2]
[368543161,1751201471946,-1029.11132451,0.00024657,2]
[368543163,1751201471955,-82.10014348,0.00024657,2]
[368543165,1751201471967,-68.89985652,0.00024657,2]
[368543167,1751201471976,-417.85125698,0.00024657,2]
[368543184,1751201472127,-72.14874302,0.00024657,2]
[368543186,1751201472137,-582.79,0.00024931,3]
[368543188,1751201472149,-204.95035676,0.00024931,3]
[368543214,1751201472395,-735.46964324,0.00024931,3]
[368543216,1751201472404,-4800.0,0.00024931,3]
[368543218,1751201472414,-576.43,0.00024931,3]
[368543220,1751201472423,-200.0,0.000251,7]
[368543222,1751201472433,-18532.38475993,0.00025205,3]
[368543224,1751201472443,-490.0,0.00025205,3]
[368543226,1751201472452,-673.33,0.00025205,3]
[368543228,1751201472462,-2930.2,0.00025205,3]
[368543230,1751201472471,-4676.9,0.00025205,3]